fUST/lending_fUST_20250512
["ID","MTS","AMOUNT","RATE_DAILY","PERIOD"]
[360763003,1746988237963,-500.0,0.000199,2]
[360763004,1746988237973,-157.77,0.0002,2]
[360763005,1746988237983,-741.776845,0.00020187,2]
[360763006,1746988237993,-210.65649705,0.000209,4]
[360763007,1746988238002,-420.0,0.00020974,2]
[360763008,1746988238011,-155.0,0.0002156,2]
[360763009,1746988238021,-150.0,0.00021918,2]
[360763010,1746988238030,-293.31,0.00022,2]
[360763011,1746988238039,-160.0,0.00022031,2]
[360763012,1746988238048,-532.8,0.0002213,15]
[360763013,1746988238057,-500.0,0.00023,2]
[360763014,1746988238069,-500.0,0.00023,2]
[360763015,1746988238078,-874.89732276,0.000239,2]
[360763016,1746988238088,-501.60221199,0.00024467,2]
[360763017,1746988238097,-500.0,0.00024467,2]
[360763018,1746988238107,-186.37044562,0.00024467,2]
[360763019,1746988238118,-500.0,0.00024467,2]
[360763020,1746988238127,-4490.12091087,0.00024657,2]
[360763021,1746988238139,-528.27785132,0.00024657,2]
[360763029,1746988240248,-491.69843,0.0002213,15]
[360763030,1746988240257,-575.50391567,0.00024657,2]
[360763046,1746988243054,-495.0,0.0002213,15]
[360763047,1746988243064,-575.45539866,0.00024657,2]
[360763049,1746988243074,-300.0,0.00024658,2]
[360763051,1746988243085,-200.0,0.00024658,15]
[360763052,1746988243094,-501.42150734,0.000249,2]
[360763053,1746988243104,-1000.0,0.00025079,2]
[360763054,1746988243114,-1000.0,0.00025079,2]
[360763055,1746988243123,-1000.0,0.00025379,2]
[360763056,1746988243132,-1660.41133497,0.00026,30]
[360763058,1746988243142,-500.0,0.00026027,2]
[360763059,1746988243152,-500.0,0.00026027,2]
[360763061,1746988243162,-500.0,0.00026027,2]
[360763062,1746988243172,-500.0,0.00026027,2]
[360763063,1746988243181,-500.0,0.00026027,2]
[360763064,1746988243190,-500.0,0.00026027,2]
[360763065,1746988243200,-500.0,0.00026027,2]
[360763067,1746988243209,-500.0,0.00026027,2]
[360763069,1746988243219,-500.0,0.00026027,2]
[360763070,1746988243228,-500.0,0.00026027,2]
[360763071,1746988243237,-500.0,0.00026027,2]
[360763072,1746988243246,-348.64,0.00026027,2]
[360763073,1746988243256,-154.0,0.00026301,3]
[360763074,1746988243266,-741.776845,0.00026676,2]
[360763075,1746988243275,-314.1995513,0.00027,3]
[360763077,1746988243284,-300.0,0.00027397,2]
[360763078,1746988243293,-300.0,0.00027397,2]
[360763079,1746988243303,-300.0,0.00027397,2]
[360763080,1746988243312,-300.0,0.00027397,2]
[360763081,1746988243323,-300.0,0.00027397,2]
[360763082,1746988243332,-300.0,0.00027397,2]
[360763083,1746988243342,-300.0,0.00027397,2]
[360763084,1746988243351,-300.0,0.00027397,2]
[360763085,1746988243361,-300.0,0.00027397,2]
[360763086,1746988243371,-300.0,0.00027397,2]
[360763087,1746988243380,-300.0,0.00027397,2]
[360763088,1746988243390,-300.0,0.00027397,2]
[360763089,1746988243400,-300.0,0.00027397,2]
[360763090,1746988243410,-300.0,0.00027397,2]
[360763091,1746988243419,-300.0,0.00027397,2]
[360763092,1746988243428,-300.0,0.00027397,2]
[360763093,1746988243438,-300.0,0.00027397,2]
[360763094,1746988243452,-300.0,0.00027397,2]
[360763095,1746988243462,-300.0,0.00027397,2]
[360763096,1746988243471,-300.0,0.00027397,2]
[360763097,1746988243480,-201.83853828,0.00027397,2]
[360763098,1746988243490,-1000.0,0.00027397,5]
[360763099,1746988243499,-1000.0,0.00027397,5]
[360763100,1746988243509,-1000.0,0.00027397,5]
[360763101,1746988243520,-1000.0,0.00027397,5]
[360763102,1746988243530,-1000.0,0.00027397,5]
[360763103,1746988243539,-382.60872692,0.00027397,5]
[360763104,1746988243549,-400.0,0.00027397,2]
[360763105,1746988243559,-400.0,0.00027397,2]
[360763106,1746988243568,-198.5,0.00027397,2]
[360763107,1746988243578,-450.0,0.00027397,5]
[360763108,1746988243587,-500.0,0.00027397,5]
[360763109,1746988243597,-314.1995513,0.00028,10]
[360763110,1746988243607,-500.0,0.00028034,7]
[360763111,1746988243616,-174.536,0.00028034,18]
[360763112,1746988243625,-997.71092301,0.0002869,2]
[360763113,1746988243635,-212.1539542,0.00028701,2]
[360763114,1746988243644,-422.1676983,0.00028701,2]
[360763115,1746988243654,-500.0,0.00028856,7]
[360763116,1746988243663,-500.0,0.00029678,7]
[360763117,1746988243673,-169.16569128,0.000299,2]
[360763118,1746988243682,-1171.17705583,0.000299,2]
[360763119,1746988243692,-1000.0,0.00029946,5]
[360763120,1746988243701,-1000.0,0.00029946,5]
[360763121,1746988243711,-500.0,0.00029973,5]
[360763122,1746988243720,-500.0,0.00029973,5]
[360763123,1746988243729,-500.0,0.00029973,5]
[360763124,1746988243739,-500.0,0.00029973,5]
[360763125,1746988243748,-500.0,0.00029973,5]
[360763126,1746988243758,-500.0,0.00029973,5]
[360763127,1746988243767,-300.0,0.00029973,5]
[360763128,1746988243776,-500.0,0.00029973,2]
[360763129,1746988243786,-500.0,0.00029973,5]
[360763130,1746988243795,-546.0,0.0003,5]
[360763131,1746988243804,-17589.06787163,0.0003,7]
[360763137,1746988245875,-3887.39190415,0.0003,7]
[360763138,1746988245885,-273.0,0.0003,2]
[360763139,1746988245894,-199.0,0.0003,2]
[360763140,1746988245903,-20528.60809585,0.0003,2]
[360763141,1746988245915,-190929.14237164,0.0003,2]
[360763142,1746988245924,-17578.19202072,0.0003,15]
[360763143,1746988245934,-2118.8,0.0003,2]
[360763144,1746988245943,-2000.0,0.0003,4]
[360763145,1746988245953,-2000.0,0.0003,6]
[360763146,1746988245962,-600.0,0.00030137,5]
[360763147,1746988245972,-169.16569127,0.00030275,2]
[360763148,1746988245981,-500.0,0.000305,7]
[360763149,1746988245991,-169.16569127,0.0003065,2]
[360763150,1746988246000,-160.0,0.00030766,2]
[360763151,1746988246010,-897.0225674,0.00030913,4]
[360763152,1746988246019,-192.80310409,0.00030918,2]
[360763153,1746988246028,-500.0,0.00030973,5]
[360763154,1746988246038,-500.0,0.00030973,5]
[360763155,1746988246049,-500.0,0.00030973,5]
[360763156,1746988246058,-500.0,0.00030973,5]
[360763157,1746988246068,-529.7579859,0.00030973,5]
[360763158,1746988246077,-500.0,0.00030973,5]
[360763159,1746988246086,-500.0,0.00030973,5]
[360763160,1746988246094,-500.0,0.00030973,5]
[360763161,1746988246103,-500.0,0.00030973,5]
[360763162,1746988246112,-500.0,0.00030973,5]
[360763163,1746988246121,-500.0,0.00030973,5]
[360763164,1746988246130,-18349.38624342,0.0003098,120]
[360763165,1746988246140,-3000.0,0.0003098,30]
[360763166,1746988246149,-314.1995513,0.0003098,120]
[360763167,1746988246158,-500.0,0.0003098,11]
[360763168,1746988246167,-16277.52310612,0.00030988,2]
[360763169,1746988246176,-9327.81406633,0.00030988,3]
[360763170,1746988246185,-294217.623952,0.00030989,2]
[360763171,1746988246195,-1011.36294759,0.00030989,2]
[360763172,1746988246203,-15186.062604,0.0003099,2]
[360763173,1746988246213,-500.0,0.00030999,14]
[360763174,1746988246221,-500.0,0.00030999,14]
[360763175,1746988246230,-500.0,0.00030999,14]
[360763176,1746988246238,-500.0,0.00030999,14]
[360763177,1746988246247,-283.24221131,0.00030999,14]
[360763178,1746988246256,-5000.0,0.00031,120]
[360763179,1746988246265,-422.1676983,0.00031,120]
[360763180,1746988246275,-1171.17705583,0.00031024,2]
[360763181,1746988246284,-169.16569127,0.00031025,2]
[360763182,1746988246293,-163.0,0.00031233,14]
[360763183,1746988246303,-500.0,0.00031322,7]
[360763184,1746988246312,-169.16569127,0.000314,2]
[360763185,1746988246321,-732.0,0.000315,3]
[360763186,1746988246330,-732.0,0.000315,3]
[360763187,1746988246340,-732.0,0.000315,3]
[360763188,1746988246349,-732.0,0.000315,3]
[360763189,1746988246357,-732.0,0.000315,3]
[360763190,1746988246366,-732.0,0.000315,3]
[360763191,1746988246375,-732.0,0.000315,3]
[360763192,1746988246385,-732.0,0.000315,3]
[360763193,1746988246394,-732.0,0.000315,3]
[360763194,1746988246403,-732.0,0.000315,3]
[360763195,1746988246413,-600.0,0.00031616,5]
[360763196,1746988246423,-14529.94920192,0.0003178,2]
[360763197,1746988246440,-35064.66767441,0.0003178,2]
[360763198,1746988246454,-4786.51259842,0.0003178,2]
[360763265,1746989347193,-500.0,0.00013698,2]
[360763266,1746989347213,-263.28894467,0.00013698,2]
[360763267,1746989347232,-157.62117301,0.00013698,2]
[360763268,1746989347251,-630.510318,0.00013699,2]
[360763269,1746989347277,-500.0,0.00013699,2]
[360763270,1746989347302,-500.0,0.00013699,2]
[360763271,1746989347327,-500.0,0.00013699,2]
[360763272,1746989347353,-500.0,0.00013699,2]
[360763273,1746989347377,-500.0,0.00013699,2]
[360763274,1746989347401,-500.0,0.00013699,2]
[360763275,1746989347423,-500.0,0.00013699,2]
[360763276,1746989347446,-500.0,0.00013699,2]
[360763277,1746989347469,-500.0,0.00013699,2]
[360763278,1746989347493,-500.0,0.00013699,2]
[360763279,1746989347517,-500.0,0.00013699,2]
[360763280,1746989347541,-500.0,0.00013699,2]
[360763281,1746989347565,-500.0,0.00013699,2]
[360763282,1746989347588,-500.0,0.00013699,2]
[360763283,1746989347611,-500.0,0.00013699,2]
[360763284,1746989347636,-452.75066831,0.00013699,2]
[360763285,1746989347660,-500.0,0.00013699,2]
[360763286,1746989347685,-500.0,0.00013699,2]
[360763287,1746989347707,-500.0,0.00013699,2]
[360763288,1746989347731,-500.0,0.00013699,2]
[360763289,1746989347755,-500.0,0.00013699,2]
[360763290,1746989347785,-500.0,0.00013699,2]
[360763291,1746989347805,-250.0,0.0001831,2]
[360763292,1746989347827,-196.0,0.00019178,3]
[360763293,1746989347849,-630.510318,0.00020187,2]
[360763294,1746989347872,-267.367636,0.000218,2]
[360763295,1746989347892,-150.0,0.00021918,2]
[360763296,1746989347911,-157.77,0.00022164,2]
[360763297,1746989347930,-454.0,0.00022166,15]
[360763298,1746989347950,-300.0,0.00024658,2]
[360763299,1746989347970,-200.0,0.00024658,15]
[360763300,1746989347989,-299.46861581,0.00024658,2]
[360763301,1746989348008,-267.367636,0.00025224,2]
[360763302,1746989348030,-7862.67814,0.00025897,2]
[360763303,1746989351126,-1136.0,0.00022166,15]
[360763304,1746989351147,-14471.99910998,0.00025897,2]
[360763305,1746989365093,-964.5,0.00022166,15]
[360763306,1746989365114,-2565.32275002,0.00025897,2]
[360763307,1746989365135,-500.0,0.00026027,2]
[360763308,1746989365158,-574.208,0.00026027,2]
[360763309,1746989365180,-500.0,0.00026027,2]
[360763310,1746989365203,-500.0,0.00026027,2]
[360763311,1746989365225,-500.0,0.00026027,2]
[360763312,1746989365246,-500.0,0.00026027,2]
[360763313,1746989365267,-500.0,0.00026027,2]
[360763314,1746989365290,-500.0,0.00026027,2]
[360763315,1746989365312,-300.0,0.00026027,2]
[360763316,1746989365334,-174.53792209,0.00026443,13]
[360763317,1746989365355,-630.510318,0.00026676,2]
[360763318,1746989365375,-200.0,0.00027,120]
[360763319,1746989365396,-314.1995513,0.00027,3]
[360763320,1746989365418,-314.1995513,0.00027,3]
[360763321,1746989365439,-618.42140719,0.000273,2]
[360763324,1746989369108,-482.15,0.00022166,15]
[360763325,1746989369129,-532.62285634,0.000273,2]
[360763326,1746989372077,-482.754,0.00022166,15]
[360763327,1746989372097,-1348.95573647,0.000273,2]
[360763328,1746989372118,-450.0,0.00027397,5]
[360763329,1746989372139,-972.59300918,0.00027397,120]
[360763330,1746989374097,-346.78481035,0.00022166,15]
[360763331,1746989374139,-136.21518965,0.00022166,15]
[360763332,1746989374162,-452.46587382,0.00027397,120]
[360763333,1746989374184,-500.0,0.00027397,5]
[360763334,1746989374206,-500.0,0.00027725,5]
[360763335,1746989374228,-314.1995513,0.00028,10]
[360763336,1746989374250,-500.0,0.00028034,7]
[360763337,1746989374273,-200.0,0.000282,120]
[360763338,1746989374295,-267.367636,0.00028649,2]
[360763339,1746989377603,361.877,0.00022166,15]
[360763340,1746989381639,271.12,0.00022166,15]
[360763341,1746989387232,811.5,0.00022166,15]
[360763432,1746989438007,-2500.0,0.000288,5]
[360763433,1746989438018,-500.0,0.00028856,7]
[360763434,1746989438029,-291.63244092,0.0002889,2]
[360763435,1746989438040,-1171.17705583,0.0002889,2]
[360763437,1746989438052,-500.0,0.00028973,5]
[360763439,1746989438064,-500.0,0.00028973,5]
[360763440,1746989438075,-500.0,0.00028973,5]
[360763441,1746989438086,-500.0,0.00028973,5]
[360763442,1746989438101,-3050.06295008,0.0002899,2]
[360763461,1746989442831,194.42162728,0.00026756,2]
[360763483,1746989446123,-2724.9999525,0.0002899,2]
[360763484,1746989447605,150.0,0.00021639,2]
[360763485,1746989467033,500.0,0.00027397,5]
[360763486,1746989490994,997.71092301,0.00027,3]
[360763487,1746989491585,29.64235554,0.00013699,2]
[360763525,1746990429088,-638.17169675,0.00012997,2]
[360763526,1746990429109,-5000.0,0.00013,2]
[360763527,1746990429130,-300.0,0.00013696,2]
[360763528,1746990429156,-300.0,0.00013697,2]
[360763529,1746990429177,-1200.0,0.00013697,2]
[360763530,1746990429198,-300.0,0.00013697,2]
[360763531,1746990429219,-237.90967201,0.00013698,2]
[360763532,1746990429240,-527.274736,0.00013698,2]
[360763533,1746990429261,-197.2863519,0.00013698,2]
[360763534,1746990429281,-596.32676,0.00013699,2]
[360763535,1746990429302,-1039.13988111,0.00013699,2]
[360763536,1746990439124,-186.53692959,0.00013699,2]
[360763537,1746990447089,-286.67753467,0.00013699,2]
[360763541,1746990545367,-300.0,0.00013698,2]
[360763542,1746990545387,-10083.69964528,0.00013699,2]
[360763543,1746990545415,-500.0,0.00013699,2]
[360763544,1746990545442,-500.0,0.00013699,2]
[360763545,1746990545467,-500.0,0.00013699,2]
[360763546,1746990545492,-500.0,0.00013699,2]
[360763547,1746990545517,-500.0,0.00013699,2]
[360763548,1746990545541,-500.0,0.00013699,2]
[360763549,1746990545567,-500.0,0.00013699,2]
[360763550,1746990545596,-500.0,0.00013699,2]
[360763551,1746990545620,-500.0,0.00013699,2]
[360763552,1746990545645,-500.0,0.00013699,2]
[360763553,1746990545669,-500.0,0.00013699,2]
[360763554,1746990545692,-500.0,0.00013699,2]
[360763555,1746990545716,-500.0,0.00013699,2]
[360763556,1746990545740,-500.0,0.00013699,2]
[360763557,1746990545764,-500.0,0.00013699,2]
[360763558,1746990545788,-500.0,0.00013699,2]
[360763559,1746990545811,-341.07254832,0.00013699,2]
[360763560,1746990545835,-500.0,0.00013699,2]
[360763561,1746990545858,-500.0,0.00013699,2]
[360763562,1746990545882,-500.0,0.00013699,2]
[360763563,1746990545904,-500.0,0.00013699,2]
[360763564,1746990545928,-500.0,0.00013699,2]
[360763565,1746990545951,-500.0,0.00013699,2]
[360763566,1746990545976,-500.0,0.00013699,2]
[360763567,1746990546000,-500.0,0.00013699,2]
[360763568,1746990546024,-500.0,0.00013699,2]
[360763569,1746990546049,-500.0,0.00013699,2]
[360763570,1746990546074,-500.0,0.00013699,2]
[360763571,1746990546097,-500.0,0.00013699,2]
[360763572,1746990546122,-500.0,0.00013699,2]
[360763573,1746990546141,-500.0,0.0001465,2]
[360763574,1746990546160,-500.0,0.0001465,2]
[360763575,1746990546179,-500.0,0.0001465,2]
[360763576,1746990546204,-210.65649705,0.000149,2]
[360763577,1746990546224,-192.0,0.00015009,2]
[360763578,1746990546245,-1200.0,0.00015067,2]
[360763579,1746990546267,-210.65649705,0.00017471,2]
[360763580,1746990546287,-500.0,0.00017473,2]
[360763581,1746990546307,-500.0,0.00017473,2]
[360763582,1746990546328,-500.0,0.00017473,2]
[360763583,1746990546347,-500.0,0.00017473,2]
[360763584,1746990546367,-500.0,0.00017473,2]
[360763585,1746990546388,-24900.0,0.00017474,2]
[360763586,1746990546407,-500.0,0.0001824,2]
[360763587,1746990546427,-500.0,0.0001824,2]
[360763588,1746990546446,-374.242091,0.00019178,2]
[360763589,1746990546466,-160.0,0.00019964,2]
[360763590,1746990546487,-157.77,0.0002,2]
[360763591,1746990546514,-210.65649705,0.00020043,2]
[360763592,1746990546536,-1000.0,0.00020129,2]
[360763593,1746990546555,-1000.0,0.00020129,2]
[360763594,1746990546575,-570.08151562,0.00020129,2]
[360763595,1746990546594,-1200.0,0.00020145,2]
[360763596,1746990546614,-596.32676,0.00020187,2]
[360763597,1746990546634,-500.0,0.00020219,2]
[360763598,1746990546653,-500.0,0.00020238,2]
[360763599,1746990546672,-500.0,0.00020249,2]
[360763600,1746990546694,-300.0,0.00020251,2]
[360763601,1746990546716,-1200.0,0.00020265,2]
[360763602,1746990546739,-1200.0,0.00020299,2]
[360763603,1746990546757,-500.0,0.00020317,2]
[360763604,1746990546778,-8138.76155306,0.00020364,2]
[360763605,1746990546798,-997.71092301,0.00020364,3]
[360763606,1746990546817,-499.3,0.00020386,2]
[360763607,1746990546836,-1200.0,0.00020406,2]
[360763608,1746990546856,-212.1539542,0.00020425,3]
[360763609,1746990546876,-500.0,0.00020427,2]
[360763610,1746990546896,-500.0,0.00020461,2]
[360763611,1746990546916,-500.0,0.00020464,2]
[360763612,1746990546935,-1200.0,0.00020474,2]
[360763613,1746990546955,-500.0,0.00020474,2]
[360763614,1746990546976,-1200.0,0.00020487,2]
[360763615,1746990546995,-23865.7905214,0.00020558,3]
[360763616,1746990547014,-1200.0,0.00020558,2]
[360763617,1746990547035,-1200.0,0.00020565,2]
[360763618,1746990547055,-500.0,0.00020591,2]
[360763619,1746990547076,-1200.0,0.00020653,2]
[360763620,1746990547096,-500.0,0.00020656,2]
[360763621,1746990547117,-500.0,0.00020658,2]
[360763622,1746990547137,-500.0,0.0002071,2]
[360763623,1746990547157,-1200.0,0.00020734,2]
[360763624,1746990547178,-1200.0,0.00020742,2]
[360763625,1746990547203,-1200.0,0.0002075,2]
[360763626,1746990547224,-500.0,0.00020809,2]
[360763627,1746990547244,-500.0,0.00020869,2]
[360763628,1746990547265,-500.0,0.00020894,2]
[360763629,1746990547286,-1200.0,0.00020922,2]
[360763630,1746990547307,-500.0,0.00020926,2]
[360763631,1746990547327,-1200.0,0.00020947,2]
[360763632,1746990547348,-1200.0,0.00020987,2]
[360763633,1746990547368,-509.98091602,0.00020998,2]
[360763634,1746990547388,-500.0,0.00021078,2]
[360763635,1746990547408,-429.5248757,0.00021097,2]
[360763636,1746990547427,-1200.0,0.00021107,2]
[360763637,1746990547447,-1200.0,0.00021116,2]
[360763638,1746990547467,-1200.0,0.00021118,2]
[360763639,1746990547486,-293.85068442,0.00021149,2]
[360763640,1746990547505,-601.02195512,0.00021173,2]
[360763641,1746990547526,-1200.0,0.00021195,2]
[360763642,1746990547547,-1200.0,0.00021216,2]
[360763643,1746990547566,-500.0,0.0002123,2]
[360763644,1746990547586,-364.03552813,0.00021273,2]
[360763645,1746990547606,-500.0,0.00021273,2]
[360763646,1746990547626,-500.0,0.00021273,2]
[360763647,1746990547646,-500.3345048,0.00021336,2]
[360763648,1746990547666,-500.0,0.0002136,2]
[360763649,1746990547686,-500.0,0.0002136,2]
[360763650,1746990547706,-1200.0,0.00021413,2]
[360763651,1746990547725,-1200.0,0.00021414,2]
[360763652,1746990547745,-502.76189399,0.00021432,2]
[360763653,1746990547764,-500.0,0.00021525,2]
[360763654,1746990547785,-500.0,0.0002155,2]
[360763655,1746990547806,-1200.0,0.00021564,2]
[360763656,1746990547827,-546.0,0.00021639,2]
[360763657,1746990547848,-708.0,0.00021639,2]
[360763658,1746990547868,-2240.0,0.00021639,2]
[360763659,1746990547889,-404.0,0.00021639,2]
[360763660,1746990547910,-500.0,0.00021644,2]
[360763661,1746990547933,-1200.0,0.0002166,2]
[360763662,1746990547958,-1200.0,0.00021699,2]
[360763663,1746990547980,-603.99013442,0.00021719,2]
[360763664,1746990548001,-166.23275869,0.0002182,2]
[360763665,1746990548022,-1200.0,0.00021852,2]
[360763666,1746990548042,-150.0,0.00021918,2]
[360763667,1746990548063,-500.06610038,0.00021967,2]
[360763668,1746990548085,-2313.48329383,0.00021986,2]
[360763669,1746990548106,-150.0,0.00022,2]
[360763670,1746990548127,-601.02195509,0.00022179,2]
[360763671,1746990548148,-374.242091,0.00022603,2]
[360763672,1746990548171,-210.65649705,0.00022614,7]
[360763673,1746990548198,-1000.0,0.00022952,2]
[360763674,1746990548219,-1000.0,0.00022952,2]
[360763675,1746990548242,-1000.0,0.00022952,2]
[360763676,1746990548263,-1000.0,0.00022952,2]
[360763677,1746990548284,-1000.0,0.00022952,2]
[360763678,1746990548304,-160.0,0.00023,3]
[360763679,1746990548323,-160.0,0.00023,3]
[360763680,1746990548343,-422.1676983,0.00023,3]
[360763681,1746990548363,-326.78977716,0.00023,2]
[360763682,1746990548382,-300.0,0.00023072,2]
[360763683,1746990548402,-601.02195509,0.00023185,2]
[360763684,1746990548422,-500.0,0.0002341,2]
[360763685,1746990548446,-358.02036675,0.00023719,2]
[360763686,1746990548607,-1002.30986336,0.00023719,2]
[360763687,1746990548627,-212.1539542,0.00024,3]
[360763688,1746990548649,-278.0,0.0002411,3]
[360763689,1746990548670,-601.02195509,0.00024191,2]
[360763690,1746990548690,-300.0,0.00024658,2]
[360763691,1746990548709,-200.0,0.00024658,15]
[360763692,1746990548731,-198.77575767,0.00024658,2]
[360763693,1746990548750,-1921.58960042,0.000248,2]
[360763694,1746990548772,-151.0,0.000249,7]
[360763695,1746990548793,-151.0,0.000249,7]
[360763696,1746990548814,-567258.892254,0.000249,2]
[360763697,1746990548840,-210.65649705,0.00025186,12]
[360763698,1746990548870,-601.02195509,0.00025197,2]
[360763699,1746990548914,-4066.6523706,0.00025297,2]
[360763700,1746990548962,-500.0,0.00025815,2]
[360763701,1746990549009,-588.55758085,0.00025815,2]
[360763702,1746990549056,-500.0,0.00025815,2]
[360763703,1746990549086,-216.48600942,0.00025893,2]
[360763704,1746990549113,-150.0,0.000259,7]
[360763705,1746990549142,-500.0,0.00026027,2]
[360763706,1746990549170,-261.9456,0.00026027,2]
[360763707,1746990549200,-500.0,0.00026027,2]
[360763708,1746990549228,-500.0,0.00026027,2]
[360763709,1746990549254,-500.0,0.00026027,2]
[360763710,1746990549287,-500.0,0.00026027,2]
[360763711,1746990549317,-500.0,0.00026027,2]
[360763712,1746990549342,-374.242091,0.00026027,2]
[360763713,1746990549365,-1090.67281107,0.00026137,120]
[360763714,1746990549388,-12610.21250885,0.00026436,2]
[360763715,1746990549410,-596.32676,0.00026676,2]
[360763716,1746990549431,-151.0,0.00026742,7]
[360763717,1746990549451,-151.0,0.00026742,7]
[360763718,1746990549471,-154.318293,0.00026742,7]
[360763719,1746990549492,-151.0,0.00026742,7]
[360763720,1746990549512,-153.443817,0.00026742,7]
[360763721,1746990549537,-650.55532682,0.00026752,2]
[360763722,1746990549558,-1000.0,0.00026752,2]
[360763723,1746990549579,-283629.446127,0.00026763,2]
[360763724,1746990549601,-960.79480021,0.00026763,2]
[360763725,1746990549623,-500.0,0.00026773,2]
[360763726,1746990549644,-500.0,0.00026773,2]
[360763727,1746990549664,-500.0,0.00026773,2]
[360763728,1746990549685,-500.0,0.00026773,2]
[360763729,1746990549705,-500.0,0.00026773,2]
[360763730,1746990549725,-500.0,0.00026773,2]
[360763731,1746990549744,-500.0,0.00026773,2]
[360763732,1746990549764,-500.0,0.00026773,2]
[360763733,1746990549786,-500.0,0.00026773,2]
[360763734,1746990549806,-1106.79498489,0.00026839,2]
[360763735,1746990549825,-1000.0,0.00026839,2]
[360763736,1746990549845,-220.76522,0.00027,120]
[360763737,1746990549864,-314.1995513,0.00027,3]
[360763738,1746990549884,-314.1995513,0.00027,3]
[360763739,1746990549904,-2962.1386402,0.00027128,2]
[360763740,1746990549924,-500.0,0.00027173,2]
[360763741,1746990549944,-500.0,0.00027397,2]
[360763742,1746990549965,-151.0,0.00027397,7]
[360763743,1746990549986,-151.0,0.00027397,7]
[360763744,1746990550008,-151.0,0.00027397,7]
[360763745,1746990550030,-151.0,0.00027397,7]
[360763746,1746990550054,-582.0,0.00027397,2]
[360763747,1746990550076,-500.0,0.00027397,2]
[360763748,1746990550117,-500.0,0.00027397,2]
[360763749,1746990550163,-500.0,0.00027397,2]
[360763750,1746990550209,-500.0,0.00027397,2]
[360763751,1746990550253,-500.0,0.00027397,2]
[360763752,1746990550291,-365.31180115,0.00027397,2]
[360763753,1746990550315,-500.0,0.00027397,2]
[360763754,1746990550340,-500.0,0.00027397,2]
[360763755,1746990550362,-500.0,0.00027397,2]
[360763756,1746990550385,-500.0,0.00027397,2]
[360763757,1746990550411,-500.0,0.00027397,2]
[360763758,1746990550433,-500.0,0.00027397,2]
[360763759,1746990550454,-500.0,0.00027397,2]
[360763760,1746990550477,-500.0,0.00027397,2]
[360763761,1746990550499,-500.0,0.00027397,2]
[360763762,1746990550520,-500.0,0.00027397,2]
[360763763,1746990550546,-500.0,0.00027397,2]
[360763764,1746990550569,-500.0,0.00027397,2]
[360763765,1746990550590,-500.0,0.00027397,2]
[360763766,1746990550613,-500.0,0.00027397,2]
[360763767,1746990550638,-500.0,0.00027397,2]
[360763768,1746990550667,-500.0,0.00027397,2]
[360763769,1746990550690,-500.0,0.00027397,2]
[360763770,1746990550714,-500.0,0.00027397,2]
[360763771,1746990550741,-500.0,0.00027397,2]
[360763773,1746990550764,-500.0,0.00027397,2]
[360763774,1746990550791,-500.0,0.00027397,2]
[360763776,1746990550816,-500.0,0.00027397,2]
[360763777,1746990550840,-500.0,0.00027397,2]